bitfinex/quotes_ETHUSD_20240828
["timestamp","ask_amount","ask_price","bid_price","bid_amount"]
[1724879309799,3.93516,2541.2,2540.9,7.05351315]
[1724879310001,0.0800166,2541.3,2540.8,3.93574]
[1724879310298,4.0150066,2541.3,2540.8,3.93574]
[1724879310494,4.92476306,2541.3,2540.8,3.93574]
[1724879310695,4.0151866,2541.2,2540.6,10.13872]
[1724879310902,4.0151866,2541.2,2540.7,3.9359]
[1724879312030,3.93559,2541.0,2540.5,3.93622]
[1724879312170,0.0800166,2540.9,2540.4,3.93626]
[1724879312389,4.70455169,2540.9,2540.4,3.93626]
[1724879312578,3.93578,2540.8,2540.4,3.93626]
[1724879312778,3.93578,2540.8,2540.3,3.93653]
[1724879313501,0.76881169,2540.9,2540.4,3.93631]
[1724879313715,0.0800166,2540.9,2540.4,3.93631]
[1724879313931,4.0156666,2540.9,2540.4,3.93631]
[1724879317509,4.0156666,2540.9,2540.4,7.87262]
[1724879318011,4.0156666,2540.9,2540.4,3.93631]
[1724879318311,4.0156666,2540.9,2540.4,7.87262]
[1724879319397,4.0156666,2540.9,2540.4,3.93631]
[1724879319915,4.0156666,2540.9,2540.4,7.87261]
[1724879320600,3.93578,2540.8,2540.2,3.93659]
[1724879320805,0.0800166,2540.7,2540.2,3.93659]
[1724879321117,3.9361,2540.6,2540.2,3.43659]
[1724879321686,3.9361,2540.6,2540.0,6.3441]
[1724879321687,3.9364,2540.4,2540.0,3.9369]
[1724879321891,4.0164166,2540.4,2540.0,3.9369]
[1724879322828,3.9364,2540.4,2540.0,3.9369]
[1724879323640,2.4965,2540.2,2539.4,7.05351315]
[1724879323926,2.4965,2540.2,2539.4,3.93784]
[1724879323927,3.93724,2539.9,2539.4,3.93784]
[1724879324136,0.0800166,2540.0,2539.6,3.93753]
[1724879324343,1.06642942,2540.0,2539.6,3.93753]
[1724879324495,1.06642942,2540.0,2539.5,3.9377]
[1724879324694,5.00344942,2540.0,2539.5,3.9377]
[1724879324893,0.89403794,2539.9,2539.5,3.93766]
[1724879325130,1.06642942,2540.0,2539.5,3.93766]
[1724879325335,5.4965,2540.2,2539.8,3.93723]
[1724879325336,3.0,2540.2,2539.8,3.93723]
[1724879325547,7.0168066,2540.2,2539.6,4.01500996]
[1724879325696,7.0168066,2540.2,2539.6,3.93751]
[1724879325898,1.13470566,2540.1,2539.6,3.93751]
[1724879326237,8.15157226,2540.1,2539.4,3.93783]
[1724879326544,8.15157226,2540.1,2539.4,3.93779]
[1724879326545,10.32753,2539.9,2539.4,3.93779]
[1724879326749,10.32753,2539.9,2539.2,3.9381]
[1724879326750,0.0800166,2539.8,2539.2,3.9381]
[1724879327040,0.0800166,2539.8,2539.4,3.93792]
[1724879327816,0.0800166,2539.8,2539.3,3.93808]
[1724879328137,0.0800166,2539.8,2539.4,3.93793]
[1724879328321,0.0800166,2539.8,2539.5,3.93777]
[1724879328647,0.0800166,2539.8,2539.4,3.93793]
[1724879328938,0.91581073,2539.8,2539.4,3.93793]
[1724879329640,0.91581073,2539.8,2539.2,3.93813]
[1724879329641,6.2774066,2539.7,2539.2,3.93813]
[1724879329795,3.93796,2539.4,2538.8,7.05351315]
[1724879330106,0.4738126,2539.3,2538.8,10.99226315]
[1724879330310,4.4119226,2539.3,2538.8,10.99226315]
[1724879330764,3.93846,2539.1,2538.8,7.05351315]
[1724879331043,4.0183966,2539.2,2538.8,7.05351315]
[1724879331460,3.93871,2538.9,2538.2,6.19218]
[1724879331610,4.0187266,2538.9,2538.4,3.93947]
[1724879331810,4.0187266,2538.9,2538.2,6.19218]
[1724879331811,3.93903,2538.7,2538.2,6.19218]
[1724879332255,3.93943,2538.5,2538.0,3.94005]
[1724879332556,0.0800166,2538.6,2538.1,3.93992]
[1724879332744,0.0800166,2538.6,2538.1,3.93987]
[1724879333049,0.0800166,2538.6,2538.1,3.93986]
[1724879333219,0.0800166,2538.6,2538.1,7.87973]
[1724879333417,0.0800166,2538.6,2538.1,3.93986]
[1724879333618,0.52304718,2538.6,2538.1,3.93986]
[1724879333949,0.52304718,2538.6,2538.1,7.87973]
[1724879334170,0.52304718,2538.6,2538.1,7.87972]
[1724879334327,0.41121919,2538.8,2538.5,3.93931]
[1724879334938,0.41121919,2538.8,2538.5,7.87855]
[1724879335315,0.41121919,2538.8,2538.7,7.87804]
[1724879335647,0.41121919,2538.8,2538.7,3.93902]
[1724879339054,0.41121919,2538.8,2538.5,3.93925]
[1724879339569,0.41121919,2538.8,2538.5,3.93922]
[1724879340552,0.41121919,2538.8,2538.0,16.73934]
[1724879340553,3.93934,2538.5,2538.0,12.18]
[1724879340858,7.9582666,2538.7,2538.1,3.93986]
[1724879341018,9.16437604,2538.7,2538.1,3.93986]
[1724879341219,5.22522604,2538.7,2538.1,3.93986]
[1724879342254,0.41121919,2538.8,2538.0,12.18]
[1724879342414,0.41121919,2538.8,2538.3,3.93964]
[1724879342618,0.49123579,2538.8,2538.3,3.93964]
[1724879342853,4.43011579,2538.8,2538.3,3.93964]
[1724879343154,4.0191166,2538.7,2538.1,3.93985]
[1724879343321,4.0191166,2538.7,2538.1,7.87972]
[1724879343525,4.0191166,2538.7,2538.0,12.18]
[1724879343526,7.9582566,2538.7,2538.2,3.93978]
[1724879343725,0.58158404,2538.6,2538.0,3.94001]
[1724879343923,4.39942006,2538.5,2538.1,3.93994]
[1724879344171,1.79672377,2538.8,2537.9,10.99365315]
[1724879344172,0.41121919,2538.8,2537.9,10.99365315]
[1724879344461,0.41121919,2538.8,2538.3,3.9395]
[1724879344628,0.49123579,2538.8,2538.4,3.93948]
[1724879344828,1.87674437,2538.8,2538.4,3.93948]
[1724879345019,5.81561437,2538.8,2538.3,3.93951]
[1724879346875,1.79672777,2538.8,2538.4,3.93941]
[1724879347544,5.81560437,2538.8,2538.3,3.93963]
[1724879348803,2.3702,2538.6,2537.9,7.05351315]
[1724879349092,3.93951,2538.4,2537.9,10.99368315]
[1724879349595,0.41116418,2538.3,2537.9,10.99368315]
[1724879349814,3.93983,2538.2,2537.6,3.94059]
[1724879350094,4.45491402,2538.2,2537.6,7.88122]
[1724879350301,8.39481402,2538.2,2537.6,3.94059]
[1724879350459,3.93999,2538.1,2537.6,3.94059]
[1724879350656,6.681505,2538.1,2537.2,6.21214]
[1724879350866,3.94066,2537.7,2537.2,3.94124]
[1724879351067,4.334816,2537.6,2537.1,3.94145]
[1724879351768,4.0205366,2537.8,2537.3,3.94114]
[1724879352203,0.0800166,2537.7,2537.3,3.94114]
[1724879352369,0.81713742,2537.7,2537.3,3.94114]
[1724879352759,0.0800166,2537.7,2537.3,3.94114]
[1724879353767,6.25080682,2538.1,2537.5,3.94086]
[1724879353966,3.0,2538.0,2537.5,3.94086]
[1724879354485,0.88060682,2538.1,2537.6,0.07881187]
[1724879354668,0.88060682,2538.1,2537.1,3.94149]
[1724879354669,8.29064418,2538.3,2537.7,3.9405]
[1724879354858,0.41116418,2538.3,2537.8,0.07880324]
[1724879355065,0.41116418,2538.3,2538.2,7.87958]
[1724879355284,0.41116418,2538.3,2538.0,3.94]
[1724879355489,0.41116418,2538.3,2538.1,3.93992]
[1724879356189,0.41116418,2538.3,2538.1,3.93987]
[1724879356397,0.41116418,2538.3,2538.2,3.93979]
[1724879357259,0.41116418,2538.3,2538.2,7.87958]
[1724879357460,0.41116418,2538.3,2538.2,3.93979]
[1724879358395,0.41116418,2538.3,2538.0,3.94002]
[1724879358600,0.41116418,2538.3,2538.1,3.93987]
[1724879361516,0.41116418,2538.3,2538.2,3.93979]
[1724879361816,0.41116418,2538.3,2538.2,7.87958]
[1724879364378,0.41116418,2538.3,2538.2,15.91528868]
[1724879369821,0.41116418,2538.3,2538.2,15.83650032]
[1724879371057,0.41116418,2538.3,2538.2,7.87958]
[1724879372045,0.41116418,2538.3,2538.2,3.93979]
[1724879372455,0.41116418,2538.3,2538.1,3.93992]
[1724879372663,2.2615,2538.2,2538.0,3.94002]
[1724879373140,2.2615,2538.2,2538.1,3.93995]
[1724879373506,0.41116418,2538.3,2538.1,3.93995]
[1724879373707,0.41116418,2538.3,2538.2,3.93979]
[1724879373910,0.41116418,2538.3,2538.1,3.93987]
[1724879374153,0.41116418,2538.3,2538.2,7.87958]
[1724879375850,0.41116418,2538.3,2538.2,3.93979]
[1724879376614,0.41116418,2538.3,2538.2,7.87958]
[1724879376818,0.41116418,2538.3,2538.2,3.93979]
[1724879379978,0.41116418,2538.3,2538.1,3.93981]
[1724879380460,0.41116418,2538.3,2537.7,3.94056]
[1724879380461,2.3976,2538.2,2537.7,3.94056]
[1724879380675,3.94024,2538.0,2537.5,3.94079]
[1724879380823,4.69490202,2538.1,2537.4,7.05351315]
[1724879380824,2.3976,2537.7,2537.4,7.05351315]
[1724879381024,2.4776166,2537.7,2537.3,3.9411]
[1724879381244,3.45449542,2537.7,2537.3,3.9411]
[1724879381465,0.41129821,2537.6,2536.9,13.47399315]
[1724879381754,0.41129821,2537.6,2537.5,3.94088]
[1724879382097,0.41129821,2537.6,2537.5,8.275848]
[1724879383095,0.41129821,2537.6,2537.5,8.43176]
[1724879386044,0.41129821,2537.6,2537.5,3.94088]
[1724879390973,0.41129821,2537.6,2537.5,8.43176]
[1724879391182,0.41129821,2537.6,2537.5,14.82694]
[1724879391914,2.3506,2538.8,2538.5,3.93924]
[1724879392213,5.70128158,2539.1,2538.8,3.93879]
[1724879392376,3.93786,2539.5,2539.0,3.93855]
[1724879392377,5.70128158,2539.4,2539.0,3.93855]
[1724879392574,5.70128158,2539.4,2538.9,7.87723]
[1724879392754,0.4111621,2539.3,2538.9,3.9386]
[1724879392958,1.08505597,2539.2,2538.9,3.9386]
[1724879393666,1.00503937,2539.2,2538.9,3.9386]
[1724879395587,1.08505597,2539.2,2538.7,7.87784]
[1724879395787,1.08505597,2539.2,2538.7,3.93891]
[1724879395788,1.00503937,2539.2,2538.7,3.93891]
[1724879395998,1.00503937,2539.2,2538.8,3.93877]
[1724879396818,3.4111621,2539.3,2539.0,3.93854]
[1724879397915,3.4111621,2539.3,2538.8,3.93877]
[1724879397916,0.4111621,2539.3,2539.1,3.93831]
[1724879398763,0.4111621,2539.3,2539.2,7.87648]
[1724879398969,0.4111621,2539.3,2539.2,10.33078]
[1724879399373,0.4111621,2539.3,2539.2,14.26902]
[1724879399694,0.41114296,2540.2,2539.9,3.93708]
[1724879399868,0.41114296,2540.2,2539.5,4.01644079]
[1724879400069,0.41114296,2540.2,2540.0,3.93686]
[1724879400282,0.41114296,2540.2,2540.1,7.95243204]
[1724879400493,5.70128158,2540.8,2540.3,3.93648]
[1724879400703,0.41111353,2540.6,2540.3,3.93648]
[1724879401011,0.41111353,2540.6,2540.1,3.93672]
[1724879402305,0.41111353,2540.6,2540.1,7.87348]
[1724879402487,0.41111353,2540.6,2540.1,3.93672]
[1724879403006,0.41111353,2540.6,2540.2,3.93665]
[1724879403569,0.41111353,2540.6,2540.1,3.93672]
[1724879403783,1.4772328,2540.6,2540.1,3.93672]
[1724879405930,1.4772328,2540.6,2540.2,3.93669]
[1724879408873,0.41111353,2540.6,2540.5,3.93623]
[1724879409173,0.41114014,2541.6,2541.4,3.93474]
[1724879409369,0.41114014,2541.6,2541.4,3.93469]
[1724879409571,2.3397,2542.1,2541.7,3.93428]
[1724879409776,3.35068158,2542.3,2541.7,3.93428]
[1724879409975,3.35068158,2542.3,2541.9,3.93406]
[1724879410175,3.35068158,2542.3,2541.7,3.93426]
[1724879410176,0.69363072,2542.2,2541.7,3.93426]
[1724879410784,0.69363072,2542.2,2541.3,3.9349]
[1724879410785,0.61361412,2542.2,2542.0,3.9339]
[1724879410993,2.3744,2542.4,2542.1,3.93374]
[1724879411190,2.3744,2542.4,2541.9,3.93392]
[1724879411191,3.39846,2542.4,2541.9,3.93392]
[1724879411608,3.39846,2542.4,2542.1,3.93374]
[1724879412429,0.0800166,2542.5,2541.9,3.93392]
[1724879412891,0.0800166,2542.5,2542.0,3.93389]
[1724879413097,3.0800166,2542.5,2542.0,3.93387]
[1724879413399,8.29287342,2542.5,2541.8,10.98770315]
[1724879414224,8.29287342,2542.5,2541.9,3.93405]
[1724879414431,3.9333,2542.4,2541.8,14.92182315]
[1724879414731,4.0133166,2542.4,2541.8,10.98763315]
[1724879415522,3.9333,2542.4,2541.8,10.98763315]
[1724879415894,3.9333,2542.4,2541.9,3.93404]
[1724879416096,3.0,2542.5,2542.0,3.93389]
[1724879416295,6.93315,2542.5,2542.0,3.93389]
[1724879416608,3.0,2542.5,2542.1,3.93371]
[1724879416816,5.4324,2542.6,2542.1,8.41782511]
[1724879417017,3.0,2542.6,2542.1,4.48411511]
[1724879417351,2.2886,2542.9,2542.4,3.93314]
[1724879417674,9.98232023,2543.2,2542.6,3.93285]
[1724879417810,9.98232023,2543.2,2542.2,0.44841151]
[1724879417811,0.0800166,2543.1,2542.2,0.44841151]
[1724879418148,3.93277,2542.8,2542.2,4.01216228]
[1724879418298,4.0127866,2542.8,2542.2,3.9335]
[1724879418489,3.93306,2542.6,2542.1,7.05351315]
[1724879418729,3.93315,2542.5,2542.1,7.05351315]
[1724879419536,3.93306,2542.6,2542.1,10.98724315]
[1724879420604,3.93306,2542.6,2542.1,7.05351315]
[1724879420808,2.3843,2542.4,2541.7,2.4653]
[1724879421033,3.93392,2542.0,2541.5,7.05351315]
[1724879421202,0.0800166,2541.9,2541.5,7.05351315]
[1724879421829,4.327392,2542.0,2541.5,7.05351315]
[1724879422129,3.93437,2541.7,2541.5,7.05351315]
[1724879422350,3.93423,2541.8,2541.2,7.87003]
[1724879422524,3.93423,2541.8,2541.3,0.55]
[1724879422726,0.83416586,2541.8,2541.1,9.35271315]
[1724879423052,3.93431,2541.8,2541.2,3.93505]
[1724879423209,0.0800166,2541.9,2541.4,3.93482]
[1724879423602,4.0141166,2541.9,2541.4,3.93482]
[1724879424401,4.0141166,2541.9,2541.4,7.86956]
[1724879424611,4.0141166,2541.9,2541.4,7.86949]
[1724879424812,4.0141166,2541.9,2541.4,3.93474]
[1724879425026,0.0800166,2541.9,2541.4,3.93474]
[1724879425229,0.0800166,2542.1,2541.4,3.93474]
[1724879425423,0.64866476,2542.1,2541.4,3.93474]
[1724879425626,3.64866476,2542.1,2541.4,3.93474]
[1724879426038,3.93414,2541.9,2541.4,3.93474]
[1724879426236,4.34510918,2542.0,2541.5,3.93467]
[1724879427623,0.41104918,2542.0,2541.6,3.93452]
[1724879427823,0.41104918,2542.0,2541.1,13.28797315]
[1724879427824,3.9332,2542.5,2542.0,3.93376]
[1724879428155,0.41103339,2542.4,2542.2,3.93356]
[1724879428451,0.41103339,2542.4,2542.0,4.01242989]
[1724879428622,0.41103339,2542.4,2542.1,3.93366]
[1724879429213,0.41103339,2542.4,2542.1,4.01232711]
[1724879429449,0.41103339,2542.4,2542.1,3.93366]
[1724879429650,0.41103339,2542.4,2542.1,4.01232734]
[1724879430581,0.41103339,2542.4,2542.1,3.93366]
[1724879431785,0.41103339,2542.4,2542.2,2.4472]
[1724879432275,0.41103339,2542.4,2542.0,4.33500299]
[1724879432484,0.41103339,2542.4,2542.1,4.48373]
[1724879432656,0.41103339,2542.4,2542.1,0.55]
[1724879434596,0.41103339,2542.4,2542.1,4.48372]
[1724879434886,0.41103339,2542.4,2542.1,0.55]
[1724879435889,4.34434339,2542.4,2542.1,0.55]
[1724879436274,4.34434339,2542.4,2542.0,0.55]
[1724879437053,0.41103339,2542.4,2542.0,4.48387]
[1724879437929,0.41103339,2542.4,2542.1,3.93363]
[1724879438134,6.37667,2543.1,2542.1,3.93363]
[1724879438135,3.93236,2543.0,2542.5,3.93304]
[1724879438288,0.41103844,2543.0,2542.6,0.07865095]
[1724879438493,0.41103844,2543.0,2542.6,4.01155095]
[1724879438797,3.93228,2543.1,2542.6,4.01155095]
[1724879438990,3.93228,2543.1,2542.6,4.01154095]
[1724879439189,7.28274158,2543.2,2542.6,4.01154095]
[1724879439427,7.28274158,2543.2,2542.7,3.93281]
[1724879439633,3.93206,2543.2,2542.7,3.93281]
[1724879440531,3.93225,2543.1,2542.6,4.01154095]
[1724879441320,3.93206,2543.2,2542.6,4.01154095]
[1724879441538,3.93206,2543.2,2542.6,4.65288505]
[1724879442253,7.86426,2543.2,2542.7,3.93273]
[1724879442764,7.86426,2543.2,2542.7,4.011378]
[1724879442911,3.93206,2543.2,2542.7,7.944108]
[1724879443116,3.93206,2543.2,2542.7,4.011378]
[1724879443317,3.93206,2543.2,2542.7,7.944118]
[1724879443624,7.86419,2543.2,2542.7,4.011378]
[1724879443864,7.86421,2543.2,2542.7,4.011378]
[1724879444061,3.93206,2543.2,2542.7,3.93273]
[1724879445383,3.76171454,2543.5,2543.0,3.9323]
[1724879445530,3.93163,2543.5,2543.0,3.9323]
[1724879445731,3.93163,2543.5,2543.0,4.010939]
[1724879445977,3.93174,2543.4,2543.0,0.078639]
[1724879446131,0.87434526,2543.4,2542.6,3.93295]
[1724879446335,3.93203,2543.3,2542.7,3.93281]
[1724879446566,3.93217,2543.2,2542.7,3.93281]
[1724879446871,3.93222,2543.1,2542.6,3.93294]
[1724879447533,0.0800166,2543.2,2542.7,3.93275]
[1724879447875,3.93206,2543.2,2542.7,3.93275]
[1724879448036,4.0120766,2543.2,2542.6,7.86578]
[1724879448233,4.0120766,2543.2,2542.3,3.93338]
[1724879448234,3.93277,2542.8,2542.3,3.93338]
[1724879448468,3.93221,2543.1,2542.6,3.9329]
[1724879448781,0.0800166,2543.1,2542.4,0.55]
[1724879448935,3.93239,2543.0,2542.4,0.55]
[1724879449131,3.93269,2542.8,2542.4,0.55]
[1724879449574,4.0125366,2542.9,2542.4,4.4832]
[1724879449837,0.0800166,2543.0,2542.6,2.2799]
[1724879450049,0.0800166,2543.0,2541.6,10.98803315]
[1724879450050,3.93147,2543.6,2542.8,2.2799]
[1724879450283,3.93147,2543.6,2543.1,3.9322]
[1724879450469,3.93161,2543.5,2543.1,3.9322]
[1724879450976,3.93161,2543.5,2542.8,2.2799]
[1724879450977,3.93177,2543.4,2542.8,2.2799]
[1724879451278,3.93177,2543.4,2542.9,3.9325]
[1724879451740,3.93193,2543.3,2542.9,3.9325]
[1724879452083,4.33312466,2543.3,2542.8,3.93266]
[1724879452239,3.93193,2543.3,2542.8,3.93266]
[1724879453140,3.93193,2543.3,2542.9,3.9325]
[1724879454384,3.93209,2543.2,2542.7,3.9327]
[1724879454590,3.93193,2543.3,2542.8,3.93262]
[1724879454741,3.93193,2543.3,2542.7,3.9327]
[1724879454936,4.0121066,2543.2,2542.7,3.9327]
[1724879455558,5.29825882,2543.3,2542.7,3.9327]
[1724879455759,3.93208,2543.2,2542.7,3.9327]
[1724879456350,4.0120966,2543.2,2542.7,3.9327]
[1724879456778,3.93228,2543.1,2542.5,7.86604]
[1724879456981,3.93228,2543.1,2542.6,3.93297]
[1724879457399,0.0800166,2543.2,2542.7,3.93282]
[1724879457609,0.0800166,2543.2,2542.7,3.93274]
[1724879457909,4.0121166,2543.2,2542.7,3.93274]
[1724879459175,3.93223,2543.1,2542.7,3.93274]
[1724879459502,0.0800166,2543.0,2542.5,3.93303]
[1724879459669,4.0123966,2543.0,2542.5,3.93303]
[1724879460217,3.93291,2542.7,2542.4,7.05351315]
[1724879460517,4.0125566,2542.9,2542.4,10.98672315]
[1724879461100,4.0125566,2542.9,2542.4,7.05351315]
[1724879461305,5.11279353,2542.9,2542.4,7.05351315]
[1724879461623,6.93216,2543.2,2542.5,3.93304]
[1724879461828,6.93212,2543.2,2542.7,3.93271]
[1724879462118,6.93212,2543.2,2542.4,13.31558315]
[1724879462119,3.93244,2543.0,2542.4,13.31558315]
[1724879462412,3.93244,2543.0,2542.4,10.98668315]
[1724879462618,6.93214,2543.2,2542.7,3.93273]
[1724879462793,6.93214,2543.2,2542.7,7.86547]
[1724879463163,3.0,2543.2,2542.7,3.93273]
[1724879463411,3.0800166,2543.2,2542.7,3.93273]
[1724879463590,6.93206,2543.2,2542.7,3.93272]
[1724879463912,0.0800166,2543.3,2542.7,0.628662]
[1724879464125,3.0800166,2543.3,2542.6,2.3539]
[1724879464288,3.0800166,2543.3,2542.4,10.98679315]
[1724879464289,3.93249,2543.0,2542.4,10.98679315]
[1724879464609,3.93249,2543.0,2542.5,3.93309]
[1724879465378,3.93249,2543.0,2542.4,7.05351315]
[1724879465379,3.93268,2542.8,2542.4,7.05351315]
[1724879465593,0.0800166,2542.7,2542.2,10.22088]
[1724879466310,0.0800166,2542.7,2542.2,6.28738]
[1724879466482,0.0800166,2542.7,2542.2,3.93348]
[1724879466867,3.93317,2542.5,2542.0,10.98732315]
[1724879467068,3.93316,2542.5,2542.0,10.98734315]
[1724879467521,7.86639,2542.5,2542.0,10.98734315]
[1724879467700,0.0800166,2542.8,2542.3,3.93335]
[1724879468322,9.2939,2542.9,2542.4,3.93328]
[1724879468722,13.22655,2542.9,2542.4,3.93328]
[1724879469022,10.69600317,2542.9,2542.4,3.93328]
[1724879469381,4.0127066,2542.8,2542.3,3.93334]
[1724879469585,3.0,2542.7,2542.5,3.9331]
[1724879469816,0.0800166,2542.9,2542.5,3.9331]
[1724879470518,4.0125466,2542.9,2542.3,10.22024]
[1724879470686,3.0,2542.8,2542.4,3.93328]
[1724879471211,3.0,2542.8,2542.3,6.28682]
[1724879471436,3.0,2542.8,2542.4,3.93327]
[1724879471725,0.0800166,2542.9,2542.5,3.93298]
[1724879471885,2.70214694,2543.5,2542.8,3.93254]
[1724879472222,3.93203,2543.3,2542.8,3.93254]
[1724879472424,0.0800166,2543.2,2542.8,3.93254]
[1724879472715,7.28182158,2543.8,2543.0,6.23706]
[1724879472869,0.0800166,2543.7,2543.0,6.23706]
[1724879473211,1.04532042,2543.7,2542.7,7.05351315]
[1724879473514,0.0800166,2543.7,2543.2,3.932]
[1724879473818,4.0113666,2543.7,2543.1,6.2368]
[1724879474385,3.93146,2543.6,2543.1,6.2368]
[1724879474689,3.93146,2543.6,2543.1,3.9321]
[1724879475082,1.43846342,2543.7,2542.9,3.93245]
[1724879475083,3.93176,2543.4,2542.9,3.93245]
[1724879475300,0.0800166,2543.3,2542.9,3.93245]
[1724879475873,7.9440366,2543.3,2542.7,7.05351315]
[1724879476072,0.0800166,2543.2,2542.7,10.98631315]
[1724879476280,0.0800166,2543.2,2542.7,3.9328]
[1724879476479,4.0120866,2543.2,2542.7,3.9328]
[1724879476798,0.0800166,2543.4,2542.6,3.93294]
[1724879476975,0.0800166,2543.2,2542.4,6.40442]
[1724879477171,3.93221,2543.1,2542.6,3.93288]
[1724879478128,0.0800166,2543.0,2542.5,3.93311]
[1724879478422,3.93254,2542.9,2542.5,3.93311]
[1724879479845,0.0800166,2543.0,2542.5,3.93311]
[1724879480143,3.93259,2542.9,2542.3,7.86665]
[1724879480310,3.93259,2542.9,2542.4,3.9332]
[1724879480713,7.86519,2542.9,2542.4,3.9332]
[1724879480947,3.93267,2542.8,2542.3,7.86665]
[1724879481243,4.83556884,2542.8,2542.3,3.93329]
[1724879481449,3.9329,2542.7,2542.2,10.98710315]
[1724879481758,2.4993,2543.1,2542.2,7.05351315]
[1724879481902,3.93324,2542.5,2541.9,3.93398]
[1724879482100,0.0800166,2542.5,2541.9,3.93398]
[1724879482356,4.0129966,2542.6,2541.9,3.93398]
[1724879482644,4.0129966,2542.6,2541.9,5.26181931]
[1724879483003,4.0129966,2542.6,2542.1,3.93373]
[1724879484851,0.0800166,2542.8,2542.1,3.93364]
[1724879485003,5.4831166,2542.9,2542.4,3.93327]
[1724879485211,9.4157066,2542.9,2542.4,3.93327]
[1724879485407,5.4831166,2542.9,2542.4,3.93321]
[1724879485609,5.4831166,2542.9,2542.4,3.93319]
[1724879485806,5.4831166,2542.9,2542.5,3.93313]
[1724879486506,9.4156366,2542.9,2542.3,3.93331]
[1724879486730,10.79153217,2542.9,2542.3,3.93331]
[1724879487568,10.79153217,2542.9,2542.4,3.93326]
[1724879489173,3.93282,2542.7,2542.2,3.93348]
[1724879489630,3.93282,2542.7,2542.2,7.86699]
[1724879490555,3.93324,2542.5,2542.0,3.93379]
[1724879490729,3.93351,2542.3,2541.8,3.93409]
[1724879490926,0.48134226,2542.4,2541.9,3.93397]
[1724879491126,4.0133866,2542.4,2541.9,3.93397]
[1724879491766,3.93345,2542.3,2541.8,3.93409]
[1724879492267,0.0800166,2542.2,2541.8,3.93409]
[1724879492479,3.93378,2542.1,2541.6,3.93442]
[1724879494354,3.93391,2542.0,2541.6,3.93442]
[1724879494597,7.86765,2542.1,2541.6,3.93442]
[1724879495293,0.0800166,2542.0,2541.6,3.93442]
[1724879495659,3.93378,2542.1,2541.6,3.93442]
[1724879495865,3.93378,2542.1,2541.6,5.03321332]
[1724879496079,3.93378,2542.1,2541.7,3.93435]
[1724879496752,3.93378,2542.1,2541.6,5.03331332]
[1724879497553,4.34489641,2542.0,2541.6,5.03331332]
[1724879497750,4.34489641,2542.0,2541.5,3.93467]
[1724879498392,0.41097641,2542.0,2541.6,7.86895]
[1724879498551,0.41097641,2542.0,2541.6,5.42668631]
[1724879499159,0.49099301,2542.0,2541.6,5.42668631]
[1724879499362,0.49099301,2542.0,2541.6,3.93444]
[1724879500667,0.49099301,2542.0,2541.4,10.98823315]
[1724879500668,3.93447,2541.7,2541.4,7.05351315]
[1724879501013,0.393447,2541.7,2541.3,3.93487]
[1724879501185,4.0142366,2541.8,2541.3,3.93487]
[1724879501795,2.90337641,2542.0,2541.2,3.93504]
[1724879501796,4.0144066,2541.7,2541.2,3.93504]
[1724879501990,3.93471,2541.5,2541.0,17.25572315]
[1724879502198,4.0146166,2541.6,2541.1,3.93527]
[1724879502405,4.0146166,2541.6,2541.1,5.66083232]
[1724879502996,3.93487,2541.4,2541.0,3.93534]
[1724879503200,3.93531,2541.1,2540.6,14.92545315]
[1724879503401,0.0800166,2541.0,2540.6,3.93596]
[1724879503567,4.0154866,2541.0,2540.5,3.93621]
[1724879504497,3.93531,2541.1,2540.6,3.93606]
[1724879504906,7.87075,2541.1,2540.6,3.93606]
[1724879505207,0.0800166,2541.2,2540.6,1.49258532]
[1724879505511,0.41097641,2542.0,2541.1,3.9352]
[1724879505512,2.4663,2541.7,2541.1,3.9352]
[1724879505799,2.4663,2541.7,2540.9,2.306]
[1724879505800,3.93416,2541.9,2541.4,3.93472]
[1724879506259,3.93433,2541.8,2541.3,3.93484]
[1724879506454,3.93433,2541.8,2541.3,7.86975]
[1724879506770,6.22795799,2542.0,2541.6,3.9345]
[1724879506771,0.41097641,2542.0,2541.6,3.9345]
[1724879509669,0.41097641,2542.0,2541.6,7.86888]
[1724879509884,0.41097641,2542.0,2541.6,3.93443]
[1724879510510,0.92547465,2542.0,2541.4,3.93468]
[1724879510708,3.93424,2541.8,2541.2,6.38901]
[1724879511094,3.9342,2541.9,2541.3,3.9349]
[1724879511414,3.9342,2541.9,2541.4,4.967121]
[1724879511580,3.9342,2541.9,2541.4,3.93473]
[1724879511773,3.93431,2541.8,2541.3,3.93499]
[1724879512200,3.93406,2541.9,2541.3,3.93499]
[1724879512509,7.86821,2541.9,2541.4,4.573619]
[1724879512694,7.9482266,2541.9,2541.4,3.93472]
[1724879512950,0.41098643,2541.8,2541.4,3.93472]
[1724879513889,0.41098643,2541.8,2541.4,7.86947]
[1724879514105,0.41098643,2541.8,2541.4,5.360579]
[1724879515626,0.41098643,2541.8,2541.4,3.93472]
[1724879516314,0.41098643,2541.8,2541.5,3.93467]
[1724879516530,0.41098643,2541.8,2541.7,3.93437]
[1724879516726,0.41098643,2541.8,2541.7,10.27464]
[1724879522295,0.41098643,2541.8,2541.7,14.20901]
[1724879522621,0.41098643,2541.8,2541.7,16.179911]
[1724879525585,0.41098643,2541.8,2541.7,20.114281]
[1724879525782,6.43e-06,2541.8,2541.7,20.114281]
[1724879525994,3.93254,2542.9,2542.4,3.9332]
[1724879526200,0.0800166,2542.8,2542.4,3.9332]
[1724879527133,3.93254,2542.9,2542.4,3.9332]
[1724879527626,4.90994116,2543.1,2542.6,3.93298]
[1724879527982,3.93237,2543.0,2542.5,3.93313]
[1724879528291,0.0800166,2542.9,2542.5,3.93313]
[1724879529024,0.0800166,2542.9,2542.4,7.86641]
[1724879529199,0.0800166,2542.9,2542.4,3.9332]
[1724879529603,0.0800166,2542.9,2542.5,3.93312]
[1724879532725,0.97762116,2543.1,2542.6,3.93288]
[1724879533004,5.84408158,2543.2,2542.6,3.93288]
[1724879533203,3.93222,2543.1,2542.6,3.93288]
[1724879533406,3.93222,2543.1,2542.7,3.9328]
[1724879533627,3.93222,2543.1,2542.5,3.93299]
[1724879533998,3.93222,2543.1,2542.6,3.9329]